bitfinex-derivatives/quotes_ETHF0:USTF0_20250709
["timestamp","ask_amount","ask_price","bid_price","bid_amount"]
[1752069407568,0.75253,2657.4,2657.3,0.7525]
[1752069407771,0.75259,2657.2,2657.1,0.75257]
[1752069408069,0.75259,2657.2,2657.1,0.75259]
[1752069408269,0.75267,2656.9,2656.8,0.75264]
[1752069408471,0.75267,2656.8,2656.7,3.96049]
[1752069408668,0.75273,2656.7,2656.4,0.67]
[1752069408870,0.75275,2656.6,2656.5,0.75272]
[1752069409071,0.75279,2656.4,2656.3,3.9606]
[1752069409267,0.75279,2656.4,2656.0,0.9903]
[1752069409268,1.8819,2656.5,2656.0,0.9903]
[1752069409574,0.75287,2656.2,2656.1,0.75284]
[1752069409963,0.75296,2655.8,2655.7,3.96075]
[1752069410163,1.88204,2656.3,2655.8,0.75294]
[1752069410164,0.75296,2655.9,2655.8,0.75294]
[1752069410363,0.75296,2655.8,2655.7,1.74326]
[1752069410668,0.753,2655.7,2655.6,0.753]
[1752069410865,5.09006,2656.0,2655.5,0.75304]
[1752069410866,0.75303,2655.6,2655.5,0.75304]
[1752069411173,3.2078,2656.3,2655.9,0.75293]
[1752069411470,0.75291,2656.0,2655.9,0.75291]
[1752069411767,0.75291,2656.0,2655.6,3.2078]
[1752069411963,0.75289,2656.1,2656.0,0.75289]
[1752069412160,1.2624,2656.2,2655.6,3.2078]
[1752069412359,0.75288,2656.1,2656.0,0.75288]
[1752069412568,1.2624,2656.2,2655.6,3.2078]
[1752069412765,0.75294,2655.9,2655.8,0.75294]
[1752069412960,3.2078,2656.3,2655.6,3.2078]
[1752069413164,0.6304,2656.5,2655.9,3.2078]
[1752069413165,27.84279,2656.4,2655.9,3.2078]
[1752069413366,27.84279,2656.4,2655.4,1.3648]
[1752069413367,6.04195138,2656.3,2655.6,3.2078]
[1752069413666,27.109,2656.3,2655.9,3.2078]
[1752069413868,0.75278,2656.5,2656.4,0.75279]
[1752069414074,0.75287,2656.2,2656.1,0.75286]
[1752069414372,0.75285,2656.2,2656.1,0.75286]
[1752069414584,0.75287,2656.1,2656.0,0.75288]
[1752069414872,0.75285,2656.2,2656.1,0.75285]
[1752069415072,2.01755,2656.2,2656.1,0.75285]
[1752069415274,3.59079382,2656.2,2656.1,0.75285]
[1752069415575,29.96594382,2656.2,2656.1,0.75287]
[1752069415771,0.75293,2656.0,2655.9,0.75292]
[1752069415971,0.75298,2655.8,2655.7,0.75297]
[1752069416877,1.3063,2655.9,2655.8,0.75296]
[1752069417067,2.87914529,2655.9,2655.8,0.75296]
[1752069417269,1.39338,2656.1,2655.8,0.9903]
[1752069417473,28.68054968,2656.0,2655.6,3.2078]
[1752069417674,0.75298,2655.8,2655.7,0.75296]
[1752069417873,0.75298,2655.7,2655.6,3.96078]
[1752069418076,1.3063,2655.7,2655.6,3.96078]
[1752069418378,27.111,2656.0,2655.9,0.75293]
[1752069418573,29.43618166,2656.0,2655.9,0.75293]
[1752069418778,30.75748166,2656.0,2655.9,0.75293]
[1752069418982,1.57227166,2656.0,2655.9,3.96073]
[1752069419280,0.6405,2656.1,2655.9,3.96073]
[1752069419281,0.6405,2656.1,2656.0,0.7529]
[1752069419575,27.86186,2656.2,2656.1,0.75287]
[1752069419576,27.85386,2656.2,2656.1,0.75287]
[1752069419768,0.7529,2656.1,2656.0,0.75288]
[1752069419971,2.32496306,2656.1,2656.0,0.75288]
[1752069420173,29.17516,2656.2,2656.0,0.75288]
[1752069420473,0.6717,2656.5,2656.1,2.87247]
[1752069420679,1.57171197,2656.4,2656.3,0.75281]
[1752069420977,3.2078,2656.6,2656.5,0.75276]
[1752069421178,4.77960354,2656.6,2656.5,1.74306]
[1752069421378,3.2078,2656.6,2656.5,1.74306]
[1752069421779,3.2078,2657.0,2656.9,0.75264]
[1752069422381,0.75255,2657.3,2657.2,0.75256]
[1752069422584,27.83155,2657.3,2657.2,0.75256]
[1752069422881,0.75255,2657.3,2657.2,0.75256]
[1752069423078,0.75255,2657.3,2656.9,2.87191]
[1752069423079,0.7526,2657.1,2657.0,0.7526]
[1752069423581,0.7527,2656.8,2656.7,0.75269]
[1752069423976,0.7527,2656.8,2656.6,0.6484]
[1752069423977,0.7527,2656.7,2656.6,1.40112]
[1752069424173,0.7528,2656.4,2656.3,0.75279]
[1752069424379,1.9872,2657.0,2656.3,2.87229]
[1752069424582,81.308,2657.4,2656.9,3.2078]
[1752069424877,0.75258,2657.2,2657.1,0.75257]
[1752069425579,55.4988,2657.4,2657.0,0.7526]
[1752069425580,0.75261,2657.1,2657.0,0.7526]
[1752069425781,0.75267,2656.9,2656.8,0.75265]
[1752069426380,0.75263,2657.0,2656.9,0.75262]
[1752069426882,0.75263,2657.0,2656.9,1.74292]
[1752069427087,0.75267,2656.9,2656.8,0.75266]
[1752069427385,0.75267,2656.8,2656.7,1.42449]
[1752069427784,0.75267,2656.8,2656.7,2.41479]
[1752069429079,40.0922959,2656.8,2655.8,0.9903]
[1752069429285,3.2078,2656.4,2655.8,0.9903]
[1752069429479,1.9277,2656.7,2656.2,0.75284]
[1752069429480,7.21476245,2656.7,2656.2,0.75284]
[1752069429673,4.4814,2656.7,2656.3,0.9903]
[1752069429878,4.4814,2656.7,2655.9,5.7581259]
[1752069429879,33.49018,2656.7,2656.2,0.75283]
[1752069430081,1.88197,2656.4,2655.8,4.1981]
[1752069430285,1.8819,2656.5,2655.8,4.1981]
[1752069430477,0.75293,2655.9,2655.8,3.2078]
[1752069430787,0.75304,2655.5,2655.4,4.1981]
[1752069431079,0.75304,2655.5,2655.2,0.75312]
[1752069431080,0.75313,2655.2,2655.1,0.9903]
[1752069431282,1.88268,2655.4,2654.7,0.9903]
[1752069431283,0.75324,2654.8,2654.7,0.9903]
[1752069431681,3.2078,2655.3,2654.7,0.9903]
[1752069431881,0.75319,2655.0,2654.8,0.75323]
[1752069432177,3.2078,2655.3,2655.2,0.75313]
[1752069432382,4.60966245,2656.1,2655.2,4.1981]
[1752069432582,1.2568,2656.1,2655.4,1.88268]
[1752069432778,2.00968,2656.1,2655.9,0.75292]
[1752069432984,0.75288,2656.1,2655.9,1.74322]
[1752069433184,3.2078,2656.2,2655.9,0.75292]
[1752069433384,3.2078,2656.2,2655.8,0.75294]
[1752069433687,0.75294,2655.9,2655.7,1.74890239]
[1752069434280,0.75292,2656.0,2655.8,0.75296]
[1752069434485,2.02149,2656.1,2655.9,0.75291]
[1752069434687,1.55545118,2656.0,2655.9,0.75291]
[1752069434987,0.6751,2656.7,2655.9,0.75291]
[1752069434988,0.75276,2656.5,2655.9,6.7483659]
[1752069435188,2.30833994,2656.4,2655.9,0.9903]
[1752069435387,0.75279,2656.4,2656.3,0.75281]
[1752069435682,27.186,2656.7,2656.0,0.9903]
[1752069435683,0.75282,2656.3,2656.0,0.9903]
[1752069435891,0.7528,2656.4,2656.2,0.75283]
[1752069436090,0.75281,2656.3,2656.2,0.75283]
[1752069436280,0.75286,2656.2,2656.1,0.75287]
[1752069436588,0.75286,2656.2,2656.0,0.7529]
[1752069437189,0.75286,2656.2,2656.1,0.75287]
[1752069437389,0.75277,2656.5,2656.4,0.75277]
[1752069437586,0.7528,2656.4,2656.3,0.75281]
[1752069437789,3.35286245,2657.2,2656.3,4.8660959]
[1752069437991,3.35286245,2657.2,2656.1,8.2078]
[1752069437992,1.56502618,2657.1,2657.0,3.9604]
[1752069438289,3.35286245,2657.7,2657.0,8.0738959]
[1752069438496,4.10527245,2657.8,2657.7,0.75242]
[1752069438695,5.67084589,2657.8,2657.7,0.75242]
[1752069438993,6.90963589,2657.8,2657.7,0.75242]
[1752069439185,0.75242,2657.7,2657.4,3.2078]
[1752069439390,0.75247,2657.5,2657.4,3.96029]
[1752069439690,1.56557344,2657.5,2657.4,3.2078]
[1752069439993,1.2388,2657.5,2657.4,3.9603]
[1752069440193,1.99127,2657.5,2657.4,3.9603]
[1752069440390,1.2388,2657.5,2657.4,3.9603]
[1752069441195,0.75258,2657.2,2657.0,0.75261]
[1752069441386,3.2078,2657.4,2656.8,3.2078]
[1752069441585,0.75262,2657.0,2656.9,0.75264]
[1752069441996,1.338,2657.3,2656.8,3.2078]
[1752069442295,0.75244,2657.7,2657.1,5.08925]
[1752069442594,0.75248,2657.5,2657.4,0.75249]
[1752069442895,0.75249,2657.5,2657.4,0.7525]
[1752069443289,1.338,2657.7,2657.2,1.0244]
[1752069443591,1.55931481,2657.6,2656.8,6.11386]
[1752069443897,2.11509,2657.5,2657.4,0.7525]
[1752069444292,2.11508,2657.5,2657.1,3.2078]
[1752069444492,2.11508,2657.5,2657.3,0.75251]
[1752069444690,2.11508,2657.5,2657.4,0.7525]
[1752069444892,3.2078,2657.8,2657.1,3.2078]
[1752069445092,3.2078,2657.8,2657.4,4.2322]
[1752069445093,1.3626,2657.8,2657.4,4.2322]
[1752069445391,3.2078,2658.1,2657.9,0.75234]
[1752069445392,0.75235,2658.0,2657.9,0.75234]
[1752069445696,2.31085299,2658.0,2657.9,0.75234]
[1752069446099,1.55850299,2658.0,2657.9,0.75234]
[1752069446293,2.31083299,2658.0,2657.9,0.75234]
[1752069446493,0.75239,2657.8,2657.7,1.7768]
[1752069446698,0.75238,2657.9,2657.8,0.75237]
[1752069446894,2.30761314,2657.9,2657.8,0.75237]
[1752069447090,2.08636,2658.0,2657.9,0.75236]
[1752069447297,0.75238,2657.9,2657.8,0.75237]
[1752069447499,2.30757794,2657.9,2657.8,0.75237]
[1752069447698,0.75238,2657.9,2657.8,0.75237]
[1752069447898,0.75239,2657.8,2657.7,4.98459]
[1752069448200,0.75239,2657.8,2657.7,0.75239]
[1752069448396,1.334,2658.0,2657.7,4.2322]
[1752069448594,2.08637,2658.0,2657.9,0.75236]
[1752069448796,3.64177133,2658.0,2657.9,0.75236]
[1752069448989,3.64174133,2658.0,2657.9,0.75236]
[1752069449394,2.88940133,2658.0,2657.9,0.75236]
[1752069449595,3.96012,2658.1,2658.0,0.75233]
[1752069449796,5.5158825,2658.1,2658.0,0.75233]
[1752069450900,3.96003,2658.4,2658.3,0.75225]
[1752069451103,0.75227,2658.3,2658.0,3.2078]
[1752069451296,0.7523,2658.1,2658.0,3.96011]
[1752069451501,2.55822,2658.6,2658.5,0.75219]
[1752069451502,2.00159,2658.6,2658.5,0.75219]
[1752069451696,3.55410958,2658.6,2658.5,0.75219]
[1752069451896,2.80191958,2658.6,2658.2,1.0244]
[1752069452092,0.75224,2658.4,2658.3,0.75222]
[1752069452502,2.08304,2658.4,2658.3,0.75222]
[1752069452701,1.3308,2658.4,2658.0,3.2078]
[1752069452904,0.7523,2658.2,2658.1,0.75228]
[1752069453202,0.7523,2658.2,2658.0,3.2078]
[1752069453203,0.75227,2658.3,2658.2,0.75225]
[1752069453404,2.08304,2658.4,2658.3,0.75225]
[1752069453995,1.3308,2658.4,2658.3,0.75225]
[1752069454199,0.7522,2658.5,2658.4,0.75222]
[1752069454399,2.30255375,2658.6,2658.5,0.75219]
[1752069454702,2.30253484,2658.6,2658.5,0.75219]
[1752069455904,0.75218,2658.6,2658.5,0.75219]
[1752069456103,0.75219,2658.6,2658.5,0.75217]
[1752069457302,8.8757959,2658.6,2657.7,3.2078]
[1752069457498,0.75238,2657.9,2657.8,0.75237]
[1752069457699,0.75235,2658.0,2657.9,0.75233]
[1752069459404,1.3253,2658.3,2658.0,1.88084]
[1752069459597,1.88032,2658.8,2658.0,1.88084]
[1752069459598,0.75223,2658.5,2658.4,0.75221]
[1752069460098,0.75226,2658.4,2658.3,0.75223]
[1752069460294,0.75228,2658.3,2658.1,1.0244]
[1752069460499,0.75231,2658.2,2658.1,0.75229]
[1752069460705,2.02071,2658.2,2658.1,0.75229]
[1752069461201,2.02068,2658.2,2658.1,0.75229]
[1752069462000,1.2684,2658.2,2658.1,0.75229]
[1752069462395,2.53384,2658.9,2658.2,1.8807]
[1752069462600,1.3059,2658.7,2658.6,0.75216]
[1752069462803,0.7522,2658.6,2658.5,0.75217]
[1752069463299,2.05805,2658.7,2658.6,0.75216]
[1752069464101,2.85735946,2658.7,2658.6,0.75216]
[1752069464301,1.55145946,2658.7,2658.6,1.77656]
[1752069464602,2.30358946,2658.7,2658.6,0.75216]
[1752069464802,0.75222,2658.5,2658.4,0.7522]
[1752069465200,0.75219,2658.6,2658.5,0.75216]
[1752069465401,2.3046006,2658.6,2658.5,0.75216]
[1752069466007,2.3045706,2658.6,2658.5,0.75216]
[1752069466207,1.5524106,2658.6,2658.5,0.75216]
[1752069466705,1.5524106,2658.6,2658.5,1.77656]
[1752069467304,1.5524106,2658.6,2658.5,4.98436]
[1752069467807,2.03917,2659.0,2658.9,0.75208]
[1752069468109,2.03917,2659.0,2658.8,0.75208]
[1752069468110,0.7521,2658.9,2658.8,0.75208]
[1752069468304,3.55717773,2658.9,2658.8,0.75208]
[1752069469101,2.80507773,2658.9,2658.3,1.88058]
[1752069469313,0.75217,2658.7,2658.6,0.75214]
[1752069469508,1.55647773,2658.7,2658.6,0.75214]
[1752069469811,2.80507773,2658.7,2658.6,0.75214]
[1752069470110,3.55720773,2658.7,2658.6,0.75214]
[1752069470313,2.80507773,2658.7,2658.6,0.75214]
[1752069471412,3.55720773,2658.7,2658.6,0.75214]
[1752069472708,0.75219,2658.6,2658.5,0.75216]
[1752069472904,2.91347773,2658.6,2658.5,0.75216]
[1752069473109,0.75211,2658.9,2658.8,0.75208]
[1752069473306,2.30899241,2659.0,2658.9,0.75208]
[1752069473509,0.75217,2658.7,2658.6,0.75214]
[1752069474015,2.30912923,2658.7,2658.6,0.75214]
[1752069474213,3.55822923,2658.7,2658.6,0.75214]
[1752069474415,0.75222,2658.5,2658.4,0.75218]
[1752069474611,0.75225,2658.4,2658.3,0.75222]
[1752069474829,1.2491,2658.4,2658.3,0.75222]
[1752069475028,1.43189,2658.6,2658.5,0.75219]
[1752069475422,4.11808027,2658.6,2658.2,3.2078]
[1752069475624,0.75225,2658.4,2658.3,0.75222]
[1752069475823,2.00131,2658.5,2658.4,0.75222]
[1752069476022,2.31006837,2658.5,2658.4,0.75222]
[1752069476427,0.75225,2658.4,2658.3,0.75223]
[1752069476727,2.31010837,2658.4,2658.3,0.75223]
[1752069477122,2.31010837,2658.4,2658.2,3.96006]
[1752069477123,0.75225,2658.3,2658.2,3.96006]
[1752069477318,0.75225,2658.3,2658.2,3.2078]
[1752069477522,2.31086239,2658.3,2658.2,3.2078]
[1752069478426,2.31086239,2658.3,2658.2,3.96008]
[1752069478822,1.55861239,2658.3,2658.2,4.95528]
[1752069479220,2.31086239,2658.3,2658.2,4.95528]
[1752069479621,1.55861239,2658.3,2658.2,4.95528]
[1752069480429,1.55861239,2658.3,2658.2,6.25968]
[1752069480634,1.55861239,2658.3,2658.2,3.96008]
[1752069481632,2.31086239,2658.3,2658.2,3.96008]
[1752069483135,1.55861239,2658.3,2658.2,3.96008]
[1752069483731,2.31086239,2658.3,2658.2,3.96008]
[1752069483929,2.31086239,2658.3,2658.2,3.2078]
[1752069484330,2.31086239,2658.3,2657.8,1.88097]
[1752069484331,0.75238,2657.9,2657.8,0.75235]
[1752069484637,0.75242,2657.8,2657.7,0.7524]
[1752069485837,0.75245,2657.7,2657.6,0.75243]
[1752069486134,0.75241,2657.8,2657.7,0.75239]
[1752069486536,2.31524349,2657.8,2657.7,0.7524]
[1752069489333,1.56282349,2657.8,2657.7,0.7524]
[1752069490240,2.18202349,2657.8,2657.7,1.3785]
[1752069490439,1.56282349,2657.8,2657.7,4.5863]
[1752069490739,1.56282349,2657.8,2657.7,5.5815]
[1752069491135,2.31521349,2657.8,2657.7,1.3785]
[1752069491440,2.93441349,2657.8,2657.7,1.3785]
[1752069491636,0.75244,2657.7,2657.6,0.75242]
[1752069491939,3.59046349,2657.7,2657.6,0.75242]
[1752069492139,4.20966349,2657.7,2657.6,0.75242]
[1752069492341,2.64684,2657.7,2657.6,0.75242]
[1752069492542,3.59202596,2657.7,2657.6,0.75242]
[1752069492841,2.64684,2657.7,2657.6,1.37852]
[1752069493142,3.45879673,2657.7,2657.6,1.37852]
[1752069493344,3.2078,2658.0,2657.9,0.75236]
[1752069493633,3.2078,2658.0,2657.9,1.37846]
[1752069493634,2.31639436,2658.0,2657.9,1.37846]
[1752069493840,3.45846436,2658.0,2657.9,1.37846]
[1752069494238,2.18326436,2658.0,2657.9,1.37846]
[1752069494941,2.93559436,2658.0,2657.9,1.37846]
[1752069495137,4.19399436,2658.0,2657.9,1.37846]
[1752069497339,0.75236,2657.9,2657.6,1.88111]
[1752069497544,1.2584,2657.8,2657.7,0.75242]
[1752069497843,1.8776,2657.8,2657.7,1.37852]
[1752069498040,4.18983277,2657.8,2657.7,1.37852]
[1752069499045,1.88105,2657.7,2657.2,0.6786]
[1752069499247,0.75253,2657.4,2657.3,0.75251]
[1752069499444,1.37173,2657.4,2657.3,1.37861]
[1752069499635,2.0353,2657.6,2657.5,0.75247]
[1752069499841,1.3613,2657.6,2657.5,1.37857]
[1752069500542,2.11375,2657.6,2657.5,1.37857]
[1752069500841,3.8818,2658.0,2657.8,0.75239]
[1752069501041,1.55941204,2657.9,2657.8,1.41499]
[1752069501345,2.95297204,2657.9,2657.8,4.62279]
[1752069501547,1.55941204,2657.9,2657.8,4.62279]
[1752069501746,2.20061204,2657.9,2657.8,1.41499]
[1752069502143,2.95297204,2657.9,2657.8,1.41499]
[1752069502645,4.30017204,2657.9,2657.8,0.75239]
[1752069502842,0.75244,2657.7,2657.6,0.75242]
[1752069503049,2.95305204,2657.7,2657.6,0.75242]
[1752069503949,2.20061204,2657.7,2657.2,5.76774]
[1752069504143,3.67660204,2657.6,2657.5,0.75245]
[1752069504345,4.31780204,2657.6,2657.5,0.75245]
[1752069504747,0.75253,2657.3,2657.2,4.63893]
[1752069504948,1.39373,2657.3,2657.2,5.30153]
[1752069505145,1.39373,2657.3,2657.2,3.2078]
[1752069505344,1.8815,2657.1,2656.7,0.75268]
[1752069505548,1.88156,2657.0,2656.5,0.6891]
[1752069505844,1.88156,2657.0,2656.7,0.75268]
[1752069505845,0.75269,2656.8,2656.7,0.75268]
[1752069506052,1.39389,2656.8,2656.7,1.41528]
[1752069506554,0.75273,2656.7,2656.6,0.75272]
[1752069506746,2.11743,2656.7,2656.6,1.41532]
[1752069506946,2.7586,2656.7,2656.6,1.41532]
[1752069507150,2.1174,2656.7,2656.6,0.6626]
[1752069507350,2.7586,2656.7,2656.6,1.41533]
[1752069507546,2.7586,2656.7,2656.6,0.6626]
[1752069508051,0.75269,2656.8,2656.7,0.75267]
[1752069508253,2.95231832,2656.8,2656.7,1.41527]
[1752069508458,1.39389,2656.8,2656.7,1.41527]
[1752069508647,1.39389,2656.8,2656.2,0.75282]
[1752069508648,0.75284,2656.3,2656.2,0.75282]
[1752069508853,0.75284,2656.3,2656.2,1.41542]
[1752069509047,0.75284,2656.3,2656.2,0.6626]
[1752069509251,0.75292,2656.0,2655.8,3.9039]
[1752069509447,0.7529,2656.0,2655.9,0.6626]
[1752069511450,0.75293,2655.9,2655.8,3.2078]
[1752069511655,0.75296,2655.8,2655.7,0.00564239]
[1752069511855,0.75296,2655.8,2655.7,0.66824239]
[1752069512052,0.75296,2655.8,2655.7,1.42122239]
[1752069512250,0.75296,2655.8,2655.7,0.66824239]
[1752069512650,0.75296,2655.8,2655.7,0.00564239]
[1752069512849,1.39416,2655.8,2655.7,0.00564239]
[1752069513454,4.69144876,2655.8,2655.7,0.00564239]
[1752069513655,6.02774876,2655.8,2655.7,0.00564239]
[1752069514253,1.88255,2655.6,2655.1,3.2078]
[1752069514452,1.88255,2655.6,2655.1,4.62355]
[1752069514453,1.39433,2655.2,2655.1,4.62355]
[1752069515257,0.6412,2655.2,2655.1,4.62355]
[1752069516151,0.6412,2655.2,2655.1,3.8704]
[1752069516351,0.6412,2655.2,2654.8,4.2158]
[1752069516558,1.2683,2655.1,2654.9,0.7532]
[1752069516753,2.02147,2655.1,2654.9,1.41579]
[1752069516953,2.02146,2655.1,2654.9,0.6626]
[1752069517158,0.6412,2655.0,2654.9,0.6626]
[1752069517356,1.2683,2655.1,2654.9,0.6626]
[1752069517551,1.39438,2655.0,2654.9,0.6626]
[1752069517754,7.14628876,2655.0,2654.5,1.41741]
[1752069517954,3.29728876,2654.7,2654.4,3.2078]
[1752069518150,1.39453,2654.5,2654.4,3.8704]
[1752069518354,2.02162,2654.6,2654.4,4.62375]
[1752069518551,1.39453,2654.5,2654.4,3.8704]
[1752069518756,27.026,2654.7,2654.4,0.6626]
[1752069518963,27.026,2654.7,2654.5,0.75333]
[1752069519163,0.6412,2654.6,2654.4,1.41595]
[1752069519364,0.6412,2654.5,2654.4,0.6626]
[1752069519653,27.025,2654.9,2654.4,3.95988876]
[1752069519955,1.2608,2655.1,2654.5,0.6846]
[1752069520162,0.75322,2654.9,2654.7,0.75326]
[1752069520460,1.2608,2655.1,2654.6,3.2078]
[1752069520663,1.2608,2655.1,2654.5,0.6846]
[1752069520862,1.2608,2655.1,2654.6,1.88325]
[1752069521066,28.2838,2655.1,2655.0,0.75318]
[1752069521257,0.75319,2655.0,2654.8,0.75323]
[1752069521457,0.6412,2654.9,2654.8,0.75323]
[1752069521659,0.6412,2654.9,2654.8,1.41583]
[1752069521852,3.2078,2655.3,2655.2,0.75313]
[1752069522062,30.874,2655.3,2655.2,0.75313]
[1752069522257,3.849,2655.3,2655.2,0.75313]
[1752069522967,0.6412,2655.3,2655.2,0.75313]
[1752069523154,0.6412,2655.3,2655.2,0.6626]
[1752069523555,1.3943,2655.3,2655.2,0.6626]
[1752069523768,1.3943,2655.3,2655.2,1.41573]
[1752069523957,1.3943,2655.3,2655.2,0.6626]
[1752069524163,0.6412,2655.3,2655.2,2.42373]
[1752069524361,0.6412,2655.3,2655.2,0.6626]
[1752069524560,0.6412,2655.3,2655.2,1.41573]
[1752069524761,0.75313,2655.2,2655.0,0.75317]
[1752069524956,1.2848,2655.2,2655.1,1.41575]
[1752069525162,3.2078,2655.9,2655.5,0.75303]
[1752069525459,4.4597,2655.9,2655.6,0.75299]
[1752069525659,0.75312,2655.3,2655.1,3.2078]
[1752069525854,0.75313,2655.2,2655.1,0.6626]
[1752069526059,0.75312,2655.3,2655.1,0.6626]
[1752069526266,0.75306,2655.5,2655.2,0.6626]
[1752069526467,2.59124,2655.8,2655.2,0.6626]
[1752069526468,1.5626359,2655.4,2655.2,0.6626]
[1752069526765,0.75306,2655.5,2655.2,0.6626]
[1752069526966,2.00493,2655.6,2655.2,0.6626]
[1752069527259,0.6412,2655.3,2655.2,1.41571]
[1752069527467,0.75304,2655.5,2655.3,0.75308]
[1752069527662,0.75309,2655.4,2655.2,1.41572]
[1752069527861,0.6412,2655.3,2655.2,1.41572]
[1752069528263,0.6412,2655.3,2655.2,6.41572]
[1752069528462,0.6412,2655.3,2655.2,7.71482]
[1752069528667,0.6412,2655.3,2655.2,2.71482]
[1752069528958,0.6412,2655.3,2655.2,7.71482]
[1752069529867,0.00564239,2656.0,2655.2,7.71482]
[1752069529868,0.00564239,2656.0,2655.9,0.75293]
[1752069530270,1.57044363,2656.0,2655.9,0.75293]
[1752069530663,0.00564239,2656.0,2655.9,0.75293]
[1752069530868,0.00564239,2656.0,2655.9,2.05203]
[1752069531469,0.00564239,2656.0,2655.9,3.04813]
[1752069531770,0.00564239,2656.0,2655.9,11.34541876]
[1752069532073,0.00564239,2656.0,2655.9,8.04813]
[1752069532271,0.00564239,2656.0,2655.9,1.74903]
[1752069532867,0.00564239,2656.0,2655.9,2.40213]
[1752069533465,1.57393598,2656.0,2655.9,2.40213]
[1752069533869,1.57393598,2656.0,2655.9,1.40603]
[1752069534065,5.34482474,2656.0,2655.4,3.2078]
[1752069534271,0.75306,2655.5,2655.3,0.75309]
[1752069534471,1.56829359,2655.4,2655.3,0.75309]
[1752069534873,2.09092,2655.6,2655.4,0.75307]
[1752069535168,1.56944248,2655.5,2655.4,0.75307]
[1752069535373,1.56944248,2655.5,2655.4,7.25815876]
[1752069535770,3.35850484,2656.0,2655.9,0.75293]
[1752069535974,0.00564239,2656.0,2655.9,1.74903]
[1752069536368,0.00564239,2656.0,2655.5,6.42858]
[1752069536568,2.09644239,2656.0,2655.8,0.75294]
[1752069536771,0.00564239,2656.0,2655.9,0.75293]
[1752069537074,0.00564239,2656.0,2655.9,1.74903]
[1752069537467,0.00564239,2656.0,2655.7,1.88246]
[1752069537468,0.00564239,2656.0,2655.6,0.9961]
[1752069537670,0.75855239,2656.0,2655.8,0.75294]
[1752069538070,2.06273,2655.9,2655.7,0.75297]
[1752069538271,0.75296,2655.8,2655.6,1.74909]
[1752069538467,1.3098,2655.8,2655.7,0.75298]
[1752069538669,0.00564239,2656.0,2655.7,1.74908]
[1752069538876,0.75854239,2656.0,2655.9,0.75293]
[1752069539077,0.75854239,2656.0,2655.8,1.74904]
[1752069539371,0.75856239,2656.0,2655.7,0.75297]
[1752069539576,1.3098,2655.9,2655.7,0.75297]
[1752069539771,0.75296,2655.8,2655.7,0.9961]
[1752069540276,0.00564239,2656.0,2655.7,0.9961]
[1752069540476,0.00564239,2656.0,2655.9,0.75293]
[1752069540683,0.00564239,2656.0,2655.9,2.42503]
[1752069542180,0.75854239,2656.0,2655.9,2.42503]
[1752069542583,0.00564239,2656.0,2655.9,2.42503]
[1752069545179,0.00564239,2656.0,2655.9,3.07813]
[1752069545376,0.75854239,2656.0,2655.9,3.07813]
[1752069545880,0.00564239,2656.0,2655.9,3.07813]
[1752069546787,1.23304239,2656.0,2655.9,3.07813]
[1752069546988,0.00564239,2656.0,2655.9,3.07813]
[1752069547594,0.75854239,2656.0,2655.9,0.6531]
[1752069547993,0.75854239,2656.0,2655.6,0.753]
[1752069547994,0.753,2655.7,2655.6,0.753]
[1752069548297,0.753,2655.7,2655.6,1.4061]
[1752069548492,0.753,2655.7,2655.6,0.6531]
[1752069548698,0.75304,2655.5,2655.4,4.95697]
[1752069548897,5.29998876,2655.9,2655.5,0.75304]
[1752069548898,2.09973,2655.6,2655.5,0.75304]
[1752069549098,0.75304,2655.5,2655.4,2.40225]
[1752069549299,1.3467,2655.5,2655.4,2.40227]
[1752069549499,2.09974,2655.5,2655.4,2.40227]
[1752069549993,2.09974,2655.5,2655.4,1.6492]
[1752069550598,3.66118861,2655.5,2655.4,1.6492]
[1752069550995,2.09974,2655.5,2655.4,1.6492]
[1752069551593,2.09974,2655.5,2655.1,3.2078]
[1752069551594,1.3467,2655.5,2655.1,4.2039]
[1752069551795,0.75313,2655.2,2655.1,5.61014]
[1752069552290,1.22763,2655.2,2655.1,5.61014]
[1752069553197,1.22763,2655.2,2655.1,4.61404]
[1752069553898,1.3467,2655.5,2655.4,0.75307]
[1752069554191,2.90854789,2655.5,2655.4,2.40227]
[1752069554393,3.2078,2655.8,2655.7,0.75298]
[1752069554597,5.9973878,2655.8,2655.7,1.40608]
[1752069554899,1.5621278,2655.8,2655.7,1.74908]
[1752069555397,0.00564239,2656.0,2655.9,0.75293]
[1752069555600,0.00564239,2656.0,2655.9,1.74903]
[1752069556299,1.2927,2656.5,2656.4,0.75279]
[1752069556500,4.05736245,2656.8,2656.7,0.7527]
[1752069556701,4.64556245,2657.0,2656.9,0.75264]
[1752069556896,3.2078,2657.2,2657.1,0.75259]
[1752069557298,3.2078,2657.2,2657.0,0.7526]
[1752069557299,5.25306,2657.2,2657.0,0.7526]
[1752069557499,5.25306,2657.2,2656.9,0.75264]
[1752069557500,0.7526,2657.1,2656.9,0.75264]
[1752069557701,1.2927,2657.0,2656.9,0.75264]
[1752069558201,2.04532,2657.0,2656.8,0.75265]
[1752069558401,1.2927,2657.0,2656.9,0.75264]
[1752069558993,2.04532,2657.0,2656.8,0.75265]
[1752069559201,1.2927,2657.0,2656.6,4.9074]
[1752069559404,2.04532,2657.0,2656.8,0.75266]
[1752069559597,1.2927,2657.0,2656.6,3.2078]
[1752069559902,0.75268,2656.8,2656.6,0.75272]
[1752069560105,2.0006,2656.7,2656.6,0.75272]
[1752069560299,2.0006,2656.7,2656.5,0.75274]
[1752069560501,1.2479,2656.7,2656.5,1.68694]
[1752069560701,2.0006,2656.7,2656.6,0.75273]
[1752069560906,1.2479,2656.7,2656.6,0.75273]